bitfinex/quotes_ETHUSD_20220305
["timestamp","ask_amount","ask_price","bid_price","bid_amount"]
[1646494138910,0.92264871,2641.7,2641.0,0.9264459]
[1646494139112,0.00203052,2641.3,2641.0,0.9264459]
[1646494140214,1.55242255,2641.6,2641.0,0.9264459]
[1646494140461,0.0029732,2641.3,2640.9,0.9264459]
[1646494141264,1.55242255,2641.6,2640.9,0.9264459]
[1646494141461,0.00297322,2641.2,2640.9,0.9264459]
[1646494141664,0.00297322,2641.2,2641.0,0.9264459]
[1646494142066,0.00297322,2641.2,2640.9,0.9264459]
[1646494142467,0.95439558,2641.3,2640.9,0.9264459]
[1646494142867,0.00297318,2641.2,2640.9,0.9264459]
[1646494143672,0.95439558,2641.3,2640.9,0.9264459]
[1646494144074,0.00304726,2641.2,2640.9,0.9264459]
[1646494144905,0.95439558,2641.3,2640.9,0.9264459]
[1646494145310,0.00304726,2641.2,2640.8,1.3814459]
[1646494146111,4.1936,2641.9,2640.9,0.9264459]
[1646494146312,4.1936,2641.9,2641.1,0.9264459]
[1646494146313,1.55098532,2641.8,2641.1,0.9264459]
[1646494146512,0.00304722,2641.2,2641.1,0.9264459]
[1646494146712,0.00304722,2641.2,2641.0,1.3814459]
[1646494147311,1.55098532,2641.8,2641.0,1.3814459]
[1646494147512,1.55098532,2641.8,2641.2,1.13726926]
[1646494147710,1.55098532,2641.8,2641.3,3.5]
[1646494148162,1.55098532,2641.8,2641.2,1.13726926]
[1646494148969,0.00296497,2641.7,2641.2,1.13726926]
[1646494149365,0.00296497,2641.7,2641.1,5.3934081]
[1646494149366,0.00296497,2641.7,2641.1,3.5]
[1646494149766,1.55098532,2641.8,2641.1,3.5]
[1646494149966,0.00296501,2641.6,2641.1,4.4264459]
[1646494150268,0.00296501,2641.6,2641.1,3.5]
[1646494150467,0.93965311,2641.5,2641.0,0.9264459]
[1646494150666,0.93965311,2641.5,2640.9,1.9264459]
[1646494150865,0.93965311,2641.5,2640.9,0.9264459]
[1646494151367,0.00297399,2641.4,2640.9,0.9264459]
[1646494151565,0.00297399,2641.4,2640.8,6.1046459]
[1646494151806,0.86465727,2641.1,2640.8,2.6046459]
[1646494152005,0.86465727,2641.1,2640.8,1.3814459]
[1646494152907,0.86465727,2641.1,2640.8,0.9264459]
[1646494153810,0.00297392,2641.2,2640.8,0.9264459]
[1646494154711,5.7629,2641.9,2640.8,0.9264459]
[1646494154911,0.00297267,2641.2,2640.8,0.9264459]
[1646494155856,5.7629,2641.9,2640.8,0.9264459]
[1646494156056,0.00297267,2641.2,2640.9,3.5]
[1646494156262,0.00297267,2641.2,2640.9,0.455]
[1646494156556,0.00297267,2641.2,2640.9,5.8814459]
[1646494156757,0.00297267,2641.2,2641.0,0.9264459]
[1646494156957,5.7629,2641.9,2641.1,5.47106625]
[1646494157161,3.0,2641.9,2641.3,12.4664459]
[1646494157361,3.0,2641.9,2641.5,0.9264459]
[1646494157561,3.0,2641.9,2641.6,0.455]
[1646494158360,3.0,2641.9,2641.7,0.94474954]
[1646494158561,3.00297271,2641.9,2641.7,1.39974954]
[1646494158961,3.00297271,2641.9,2641.8,0.94652]
[1646494159214,3.00297271,2641.9,2641.8,1.40152]
[1646494159403,3.0,2641.9,2641.8,4.90152]
[1646494159803,3.0,2641.9,2641.8,5.90152]
[1646494160805,3.0,2641.9,2641.8,2.40152]
[1646494161204,3.0,2641.9,2641.8,1.40152]
[1646494161407,3.0,2641.9,2641.8,4.90152]
[1646494161604,3.0,2641.9,2641.8,1.40152]
[1646494161802,3.0,2641.9,2641.8,2.40152]
[1646494162004,3.0,2641.9,2641.8,1.40152]
[1646494163658,3.0,2641.9,2641.8,4.90152]
[1646494163859,3.0,2641.9,2641.8,5.90152]
[1646494165260,3.0,2641.9,2641.8,4.955]
[1646494166063,3.0,2641.9,2641.8,7.78647798]
[1646494166462,3.0,2641.9,2641.8,5.90152]
[1646494168308,3.0,2641.9,2641.8,17.44152]
[1646494168910,3.0,2641.9,2641.8,5.90152]
[1646494169314,3.0,2641.9,2641.8,17.44152]
[1646494170317,2.99885451,2641.9,2641.8,17.44152]
[1646494171563,2.99885451,2641.9,2641.8,18.3679659]
[1646494171764,2.99885451,2641.9,2641.8,18.44152]
[1646494173171,5.05018664,2642.0,2641.9,15.04]
[1646494173470,5.05018664,2642.0,2641.9,15.9794989]
[1646494173669,4.1915,2643.2,2642.1,11.54]
[1646494173870,1.55190036,2643.1,2642.6,11.54]
[1646494174072,1.651,2643.3,2642.7,3.5]
[1646494174312,1.55174612,2643.2,2642.8,0.405]
[1646494174519,2.10522477,2643.7,2643.0,0.94273299]
[1646494174712,1.55173997,2643.6,2643.0,0.94273299]
[1646494175314,0.0020281,2643.5,2643.0,0.94273299]
[1646494175812,0.0020281,2643.5,2642.9,0.94613]
[1646494176014,0.0020281,2643.5,2642.8,0.405]
[1646494176213,1.55173997,2643.6,2642.8,0.405]
[1646494176715,0.00297212,2643.4,2642.8,0.405]
[1646494177514,0.86558516,2643.3,2642.8,0.405]
[1646494177714,1.55471215,2643.2,2642.7,1.0]
[1646494177962,1.55471215,2643.2,2642.5,1.0]
[1646494178165,1.55471215,2643.2,2642.4,0.02722262]
[1646494178565,1.55173997,2643.2,2642.4,0.02722262]
[1646494178965,0.00297228,2642.9,2642.4,0.02722262]
[1646494179170,0.00297228,2642.9,2642.4,1.24249702]
[1646494179467,0.00297228,2642.9,2642.4,1.69749702]
[1646494179868,1.55173997,2643.2,2642.4,1.69749702]
[1646494180065,0.00297206,2642.8,2642.4,1.69749702]
[1646494181066,1.55173997,2643.2,2642.4,1.69749702]
[1646494181266,0.00297208,2642.7,2642.4,1.69749702]
[1646494181717,0.00297208,2642.7,2642.4,0.48222262]
[1646494182213,1.55173997,2643.2,2642.4,0.48222262]
[1646494182507,0.0029721,2642.7,2642.4,0.48097362]
[1646494183513,3.5,2643.4,2642.4,0.48097362]
[1646494183712,0.00297215,2642.7,2642.4,0.48097362]
[1646494184514,0.00297215,2642.7,2642.4,0.49923782]
[1646494184819,1.17409154,2643.1,2642.4,0.49923782]
[1646494185013,0.00297215,2642.7,2642.4,0.49923782]
[1646494185657,0.00297215,2642.7,2642.4,1.44549062]
[1646494185858,1.55177473,2643.4,2642.4,1.44549062]
[1646494186060,0.00297215,2642.7,2642.4,12.98549062]
[1646494186256,0.00297215,2642.7,2642.4,13.98549062]
[1646494186857,0.00297215,2642.7,2642.4,4.33790062]
[1646494187058,1.55170255,2643.4,2642.4,4.33790062]
[1646494187262,0.00297214,2642.7,2642.4,4.33790062]
[1646494188361,1.55170255,2643.4,2642.4,4.33790062]
[1646494188564,0.00297214,2642.7,2642.4,4.33790062]
[1646494189225,0.00297214,2642.7,2642.4,3.39164782]
[1646494189412,5.05170255,2643.4,2642.4,1.49923782]
[1646494189413,1.55170255,2643.3,2642.4,1.49923782]
[1646494189612,1.55170255,2643.3,2642.4,0.49923782]
[1646494189814,0.00297214,2642.7,2642.4,0.04423782]
[1646494190613,1.55178606,2643.2,2642.4,0.04423782]
[1646494190814,1.03112277,2643.5,2642.4,0.04423782]
[1646494191016,0.00297214,2642.7,2642.4,0.04423782]
[1646494191813,1.55177633,2643.2,2642.4,0.04423782]
[1646494192016,0.8966968,2642.6,2642.4,0.04423782]
[1646494192621,0.00297214,2642.7,2642.4,0.04423782]
[1646494193060,1.55178557,2643.2,2642.4,0.04423782]
[1646494193261,0.00297216,2642.6,2642.4,0.04423782]
[1646494194063,0.00297216,2642.6,2642.4,2.94527801]
[1646494194264,0.94118356,2643.0,2642.5,2.89195974]
[1646494194465,0.00297216,2642.6,2642.5,2.89195974]
[1646494194663,0.00297216,2642.6,2642.5,1.0182642]
[1646494194864,0.00297216,2642.6,2642.5,2.93419521]
[1646494195068,0.00297216,2642.6,2642.5,15.47419521]
[1646494195466,1.55166043,2643.6,2642.7,0.94621]
[1646494195665,1.55166043,2643.6,2642.8,2.91702476]
[1646494196064,1.55166043,2643.6,2642.8,3.91702476]
[1646494196266,2.6743906,2643.5,2642.8,5.12705857]
[1646494196465,1.55166043,2643.4,2642.8,5.12705857]
[1646494196715,1.55166043,2643.4,2642.8,5.14532277]
[1646494196907,0.00297191,2643.3,2642.8,5.14532277]
[1646494197307,0.00297191,2643.3,2642.8,3.93528896]
[1646494197913,1.55166043,2643.4,2642.8,3.93528896]
[1646494198711,0.92544506,2644.3,2642.9,5.0]
[1646494198918,1.55167259,2644.0,2643.0,3.955]
[1646494199116,1.55167259,2644.0,2643.1,3.7833253]
[1646494199314,0.69243751,2644.6,2643.2,15.43241669]
[1646494199513,0.69243751,2645.1,2643.4,11.9182]
[1646494199716,1.07051721,2645.0,2644.2,0.90827574]
[1646494199916,1.07051721,2645.0,2644.3,0.455]
[1646494200116,1.07051721,2645.0,2644.3,1.40053]
[1646494200315,1.07051721,2645.0,2644.4,0.9455328]
[1646494200565,0.00202506,2644.7,2644.4,0.4732642]
[1646494201356,1.07051721,2645.0,2644.4,0.4732642]
[1646494201760,0.00303894,2644.7,2644.4,0.4732642]
[1646494202561,0.00303894,2644.7,2644.5,0.94552]
[1646494202769,0.00134773,2645.4,2644.6,11.995]
[1646494202960,0.00134773,2645.4,2644.7,2.07947]
[1646494203174,0.00134773,2645.4,2645.3,1.00128446]
[1646494203468,0.65264263,2645.1,2644.9,0.1887]
[1646494203668,0.65264263,2645.1,2644.9,1.9854058]
[1646494204515,0.65264263,2645.1,2645.0,2.05209923]
[1646494204717,0.65264263,2645.1,2645.0,2.52536343]
[1646494205015,0.65264263,2645.1,2645.0,0.4732642]
[1646494205216,0.65264263,2645.1,2645.0,1.4732642]
[1646494205414,0.65264263,2645.1,2645.0,0.4732642]
[1646494208370,0.65149588,2645.1,2645.0,0.4732642]
[1646494208565,0.65149588,2645.1,2645.0,1.4186242]
[1646494209167,0.65149588,2645.1,2645.0,1.73929335]
[1646494209369,0.65149588,2645.1,2645.0,1.1146025]
[1646494210367,0.65149588,2645.1,2645.0,2.0599625]
[1646494213015,0.00297638,2645.2,2645.0,2.0599625]
[1646494213416,0.00134773,2645.6,2645.1,3.5]
[1646494213625,2.8861,2646.4,2645.2,1.40011]
[1646494213626,0.00134773,2645.7,2645.2,1.40011]
[1646494213820,0.00134773,2646.0,2645.3,5.39032]
[1646494214021,0.56998355,2646.5,2645.4,0.455]
[1646494214022,0.00134773,2646.3,2645.4,0.455]
[1646494214222,0.00134773,2646.3,2645.5,3.8782]
[1646494214421,0.00134773,2646.5,2645.9,0.32066915]
[1646494214624,0.00134773,2646.6,2646.0,1.72051915]
[1646494214826,0.00134773,2647.0,2646.1,3.5]
[1646494215020,0.0119007,2646.8,2646.2,0.455]
[1646494215220,0.0119007,2646.8,2646.3,0.455]
[1646494215460,0.0119007,2646.8,2646.4,4.97640436]
[1646494215661,0.0119007,2646.8,2646.5,0.455]
[1646494215860,0.00134773,2647.2,2646.5,0.455]
[1646494215861,1.06563134,2647.1,2646.5,0.4732642]
[1646494216060,0.00203235,2646.7,2646.5,0.4732642]
[1646494216265,0.00203235,2646.7,2646.5,0.0182642]
[1646494216961,0.00134773,2647.0,2646.5,0.0182642]
[1646494217158,1.06563134,2647.1,2646.5,0.0182642]
[1646494217360,1.17754656,2646.7,2646.5,0.0182642]
[1646494217962,0.00203235,2646.7,2646.5,0.0182642]
[1646494218164,0.00134773,2647.5,2646.5,0.0182642]
[1646494218563,0.00203235,2646.7,2646.5,0.0182642]
[1646494219222,0.00203235,2646.7,2646.5,0.90920753]
[1646494219412,0.00134773,2647.1,2646.5,0.90920753]
[1646494219612,0.00318787,2646.7,2646.5,0.90920753]
[1646494219813,0.00318787,2646.7,2646.5,0.0182642]
[1646494220613,1.16007049,2647.2,2646.5,0.0182642]
[1646494220812,0.00318787,2646.7,2646.5,0.0182642]
[1646494221914,1.16007049,2647.2,2646.5,0.0182642]
[1646494222114,0.1292,2647.1,2646.5,0.0182642]
[1646494222314,0.00318787,2646.7,2646.5,0.0182642]
[1646494222512,1.19224539,2646.6,2646.5,0.0182642]
[1646494223570,0.01922755,2645.9,2645.3,5.44533]
[1646494223770,0.01922755,2645.9,2645.3,1.94533]
[1646494223974,0.01922755,2645.9,2645.3,0.94533]
[1646494224171,0.01922755,2645.9,2645.0,2.09244]
[1646494224370,0.01922755,2645.9,2645.0,0.94544]
[1646494224573,0.00296516,2645.7,2645.0,0.94544]
[1646494224773,0.00296516,2645.7,2645.4,1.44467406]
[1646494224973,0.00296516,2645.7,2645.6,0.32066915]
[1646494225477,0.01922755,2645.9,2645.6,0.32066915]
[1646494225673,0.00296514,2645.8,2645.6,0.32066915]
[1646494226719,0.01922755,2645.9,2645.6,0.32066915]
[1646494226908,0.00296667,2645.8,2645.6,0.32066915]
[1646494227916,0.01922755,2645.9,2645.6,0.32066915]
[1646494228112,0.00296667,2645.8,2645.6,0.32066915]
[1646494229221,0.01922755,2645.9,2645.6,0.32066915]
[1646494229414,0.00296667,2645.8,2645.7,0.87300244]
[1646494230216,0.01922755,2645.9,2645.7,0.87300244]
[1646494230458,0.01922755,2645.9,2645.8,1.26582915]
[1646494230661,0.02220827,2645.9,2645.8,1.26582915]
[1646494231460,0.01922755,2645.9,2645.8,4.76582915]
[1646494232965,0.01922755,2645.9,2645.8,1.26582915]
[1646494235210,0.01922755,2645.9,2645.8,1.5864983]
[1646494235412,2.755e-05,2645.9,2645.8,5.5414983]
[1646494235616,0.00134773,2647.1,2646.0,0.9449212]
[1646494235813,0.00134773,2647.1,2646.2,0.9449]
[1646494236011,0.00134773,2647.2,2646.3,0.455]
[1646494236213,0.00134773,2647.2,2646.6,0.32066915]
[1646494236410,0.1305,2647.5,2646.6,1.45102979]
[1646494236411,1.17340647,2647.3,2646.6,1.45102979]
[1646494236613,1.1747542,2647.3,2646.6,1.30102979]
[1646494236912,1.1747542,2647.3,2646.6,0.17066915]
[1646494237714,0.00312037,2647.1,2646.6,0.17066915]
[1646494238766,1.1747542,2647.3,2646.6,0.17066915]
[1646494238966,0.00312041,2647.0,2646.6,0.17066915]
[1646494239966,1.1747542,2647.3,2646.6,0.17066915]
[1646494240168,0.00312043,2646.9,2646.6,0.17066915]
[1646494240569,0.00312043,2646.9,2646.8,0.32066915]
[1646494241170,1.1747542,2647.3,2646.8,0.32066915]
[1646494241370,0.00296581,2647.0,2646.8,0.32066915]
[1646494242317,1.1747542,2647.3,2646.8,0.32066915]
[1646494242610,0.00296579,2647.0,2646.8,0.32066915]
[1646494243615,1.1747542,2647.3,2646.8,0.32066915]
[1646494243816,0.33744198,2646.7,2646.5,1.00128486]
[1646494244417,0.33744198,2646.7,2646.5,1.94618486]
[1646494245017,0.34042065,2646.7,2646.5,2.89102896]
[1646494245860,0.33744198,2646.7,2646.5,2.84102896]
[1646494246259,0.34042065,2646.7,2646.5,2.84102896]
[1646494246861,0.34042065,2646.7,2646.6,0.17066915]
[1646494247061,0.33744198,2646.7,2646.6,0.17066915]
[1646494247469,0.34042065,2646.7,2646.6,0.17066915]
[1646494248268,0.33744198,2646.7,2646.6,0.17066915]
[1646494248666,1.26301903,2646.7,2646.6,0.17066915]
[1646494249412,2.81277927,2646.7,2646.6,0.17066915]
[1646494250816,1.26301903,2646.7,2646.6,0.17066915]
[1646494252014,2.81269977,2646.7,2646.6,0.17066915]
[1646494252621,2.81274407,2646.7,2646.6,0.17066915]
[1646494254864,6.31274407,2646.7,2646.6,0.17066915]
[1646494255064,1.26301903,2646.7,2646.6,0.17066915]
[1646494255275,5.0,2646.6,2645.4,1.1421]
[1646494255465,5.05121579,2646.5,2645.2,2.80783557]
[1646494255673,1.19138254,2645.6,2645.2,2.80783557]
[1646494257023,0.00297748,2645.5,2645.2,2.80783557]
[1646494257219,1.55335083,2645.5,2645.2,2.80783557]
[1646494258025,1.55037335,2645.5,2645.2,2.80783557]
[1646494258225,1.55335084,2645.5,2644.6,1.0737998]
[1646494258428,0.94244034,2645.1,2644.6,1.0737998]
[1646494258625,0.00297749,2645.5,2644.6,1.0737998]
[1646494259225,1.55036588,2645.8,2644.6,1.0737998]
[1646494259528,0.00297764,2645.2,2645.0,1.12522536]
[1646494260335,0.00134773,2646.0,2645.0,2.44885536]
[1646494260560,1.55139225,2646.0,2645.1,0.3782]
[1646494260765,0.00297762,2645.2,2645.1,0.3782]
[1646494261560,1.0901604,2646.0,2645.1,0.3782]
[1646494261762,0.0029776,2645.3,2645.1,2.2688751]
[1646494262760,1.0901604,2646.0,2645.1,2.2688751]
[1646494262761,1.0901604,2646.0,2645.4,1.09048172]
[1646494262970,1.08881267,2646.0,2645.4,1.09048172]
[1646494263366,0.00134773,2646.5,2645.4,1.09048172]
[1646494263565,1.55133454,2646.5,2645.4,1.09048172]
[1646494263765,0.1295,2646.4,2645.4,1.09048172]
[1646494263966,1.55133454,2646.3,2645.4,1.09048172]
[1646494264224,0.00297732,2646.1,2645.4,1.09048172]
[1646494265211,1.54998681,2646.2,2645.4,1.09048172]
[1646494265411,0.00297739,2645.9,2645.4,1.09048172]
[1646494265623,0.00297739,2645.9,2645.4,2.49079172]
[1646494265813,0.00297739,2645.9,2645.4,4.38116352]
[1646494266212,0.00297739,2645.9,2645.4,6.38116352]
[1646494266416,1.54982448,2646.5,2645.4,5.81405352]
[1646494266616,0.0029774,2645.8,2645.4,6.74049942]
[1646494267013,0.0029774,2645.8,2645.7,1.8902]
[1646494267313,0.0029774,2645.8,2645.7,2.3452]
[1646494267514,0.00134773,2646.6,2645.7,2.3452]
[1646494267715,0.00134773,2646.6,2645.8,0.9450959]
[1646494267960,3.15148388,2646.7,2645.8,1.86321769]
[1646494267961,0.00297737,2645.9,2645.8,1.86321769]
[1646494268664,0.00297737,2645.9,2645.8,2.80830769]
[1646494268867,0.00134773,2646.6,2645.8,3.26330769]
[1646494269063,0.00297733,2646.0,2645.8,5.20837769]
[1646494269866,1.94068971,2646.7,2645.8,5.20837769]
[1646494270065,1.94068971,2646.7,2646.3,1.14070473]
[1646494270265,0.33744198,2646.7,2646.3,1.14070473]
[1646494270466,0.33744198,2646.7,2646.0,0.455]
[1646494270664,0.33878971,2646.7,2646.0,0.455]
[1646494270870,0.33878971,2646.7,2646.2,0.94503]
[1646494271067,0.33744198,2646.7,2646.2,0.94503]
[1646494271465,0.00297716,2646.5,2646.2,0.94503]
[1646494272113,0.00297716,2646.5,2646.2,1.95632402]
[1646494272614,0.00297716,2646.5,2645.8,4.5522659]
[1646494272816,0.00297716,2646.5,2645.8,2.6621]
[1646494273020,0.00297716,2646.5,2645.8,1.2071]
[1646494273618,0.98007006,2646.1,2645.8,1.2071]
[1646494274026,3.5,2646.0,2645.6,0.25]
[1646494274224,0.98007006,2646.1,2645.2,1.0]
[1646494274421,0.98007006,2646.1,2645.4,0.94532]
[1646494275022,0.00297739,2645.8,2645.4,1.98095257]
[1646494275867,1.5499215,2646.3,2645.4,1.98095257]
[1646494276077,1.5499215,2646.2,2645.4,1.98095257]
[1646494276267,0.00297741,2645.7,2645.4,0.94532]
[1646494276467,0.00297741,2645.7,2645.6,1.15081432]
[1646494277067,0.94724542,2646.5,2645.6,1.15081432]
[1646494277068,0.00134773,2646.4,2645.6,1.15081432]
[1646494277466,0.00297741,2645.8,2645.6,1.15081432]
[1646494278468,1.54984381,2646.3,2645.6,1.15081432]
[1646494278676,0.0029774,2645.8,2645.6,1.15081432]
[1646494278869,0.0029774,2645.8,2645.6,1.98401432]
[1646494279319,0.0029774,2645.8,2645.6,2.91046022]
[1646494279518,0.00134773,2646.6,2645.6,1.98401432]
[1646494279728,1.54960613,2646.6,2646.1,1.12129123]
[1646494279924,1.55096999,2646.6,2646.1,1.12129123]
[1646494280125,1.54960613,2646.6,2645.9,0.455]
[1646494280925,0.00297719,2646.4,2645.9,0.455]
[1646494281126,0.00297719,2646.4,2645.9,1.60789876]
[1646494281525,0.00297719,2646.4,2646.1,0.94503]
[1646494281925,1.54960613,2646.6,2646.1,0.94503]
[1646494282125,0.33880584,2646.7,2646.1,0.94503]
[1646494282324,0.00297723,2646.3,2646.1,0.94503]
[1646494283163,0.00136386,2646.6,2646.1,0.94503]
[1646494283367,0.00297721,2646.3,2645.7,4.3903459]
[1646494283564,0.00297721,2646.3,2645.7,3.9189]
[1646494284264,0.00297721,2646.3,2645.8,0.94514]
[1646494284464,0.00136386,2646.6,2645.9,0.90983249]
[1646494284664,0.00297727,2646.1,2645.9,0.90983249]
[1646494285564,0.33880584,2646.7,2645.9,0.90983249]
[1646494285767,0.00297727,2646.1,2645.9,0.90983249]
[1646494286812,0.33880584,2646.7,2645.9,0.90983249]
[1646494287013,0.00297727,2646.1,2645.9,0.90983249]
[1646494288016,0.00136386,2646.5,2645.8,1.0]
[1646494288216,0.00297728,2646.1,2645.7,4.4639]
[1646494288416,0.00297728,2646.1,2645.8,0.94515]
[1646494289021,0.00297728,2646.1,2645.7,4.4639]
[1646494289217,0.00136386,2646.6,2645.7,4.4639]
[1646494289416,0.0029773,2646.1,2645.7,4.4639]
[1646494289819,0.0029773,2646.1,2645.7,2.3031]
[1646494290018,0.0029773,2646.1,2645.5,0.25]
[1646494290217,0.0029773,2646.1,2645.3,1.1435]
[1646494290465,1.03412641,2646.2,2645.3,1.13302683]
[1646494290664,0.00297731,2646.0,2645.3,1.13302683]
[1646494290864,0.00297731,2646.0,2645.3,1.99865063]
[1646494291567,1.03412641,2646.2,2645.3,1.99865063]
[1646494291864,0.00297741,2645.8,2645.3,1.99865063]
[1646494292865,1.03412641,2646.2,2645.3,1.99865063]
[1646494293066,0.00297744,2645.7,2645.3,1.99865063]
[1646494293668,0.00297744,2645.7,2645.3,2.94398063]
[1646494294075,3.5,2646.5,2645.3,2.94398063]
[1646494294313,0.00297746,2645.6,2645.3,3.87042653]
[1646494294718,0.00297746,2645.6,2645.4,0.9264459]
[1646494295017,0.00297746,2645.6,2645.4,1.8716659]
[1646494295318,0.00136386,2646.6,2645.8,0.94516]
[1646494295516,0.1278,2646.6,2645.8,0.94516]
[1646494295717,0.33880584,2646.7,2645.8,0.94516]
[1646494296318,1.32493838,2646.7,2646.0,0.99515556]
[1646494296724,0.0029772,2646.4,2646.0,0.99515556]
[1646494297119,0.0029772,2646.4,2645.8,0.94516]
[1646494297318,0.0029772,2646.4,2645.6,6.3035959]
[1646494297519,1.32493838,2646.7,2645.6,6.3035959]
[1646494297964,0.00297725,2646.2,2645.6,6.3035959]
[1646494298567,0.00297725,2646.2,2645.7,1.07577337]
[1646494298766,1.32493838,2646.7,2645.7,1.07577337]
[1646494298966,0.00297731,2646.0,2645.7,1.07577337]
[1646494299967,0.9244093,2646.3,2645.7,1.07577337]
[1646494300169,0.00297732,2646.0,2645.7,1.07577337]
[1646494301169,1.54978926,2646.6,2645.7,1.07577337]
[1646494301371,0.00297732,2646.0,2645.7,1.07577337]
[1646494302424,1.54978926,2646.6,2645.7,1.07577337]
[1646494302624,0.00297734,2646.0,2645.7,1.07577337]
[1646494302823,0.00297734,2646.0,2645.8,0.9264459]
[1646494303625,1.17663721,2646.3,2645.7,2.00221927]
[1646494303924,0.00297732,2646.0,2645.7,2.00221927]
[1646494304724,1.54975283,2646.6,2645.7,2.00221927]
[1646494304925,1.54975283,2646.6,2645.7,1.07577337]
[1646494305126,0.00297734,2646.0,2645.7,1.07577337]
[1646494305965,1.54975283,2646.3,2645.6,0.9264459]
[1646494306364,0.00297733,2646.0,2645.6,0.9264459]
[1646494306865,0.00297733,2646.0,2645.6,1.8716659]
[1646494307068,0.00297733,2646.0,2645.7,0.9264459]
[1646494307265,1.54976901,2646.6,2645.7,0.9264459]
[1646494307465,0.00297735,2645.9,2645.7,0.9264459]
[1646494307864,0.00297735,2645.9,2645.8,1.19009262]
[1646494308274,0.00297735,2645.9,2645.8,3.21224903]
[1646494308467,1.54976901,2646.6,2646.0,0.94501]
[1646494308673,1.54976901,2646.6,2646.1,0.92695462]
[1646494308870,0.33744198,2646.7,2646.1,0.92695462]
[1646494309423,0.33744198,2646.7,2646.3,0.98332756]
[1646494310025,0.00297714,2646.5,2646.3,0.98332756]
[1646494310731,0.33744198,2646.7,2646.3,1.91028218]
[1646494310931,0.33609736,2646.7,2646.3,1.91028218]
[1646494311132,0.00297714,2646.5,2646.3,1.91028218]
[1646494311335,0.00297714,2646.5,2646.4,1.87191462]
[1646494311933,0.33609736,2646.7,2646.4,1.87191462]
[1646494312334,0.00297712,2646.6,2646.4,1.87191462]
[1646494312534,0.00297712,2646.6,2646.5,3.5]
[1646494313166,0.33609736,2646.7,2646.5,4.5]
[1646494313566,0.33907443,2646.7,2646.5,4.5]
[1646494313966,0.33907443,2646.7,2646.6,3.5]
[1646494314367,0.33609736,2646.7,2646.6,3.5]
[1646494314778,0.33907441,2646.7,2646.6,3.5]
[1646494315569,0.33609736,2646.7,2646.6,3.5]
[1646494317929,0.33609736,2646.7,2646.6,4.5]
[1646494318125,0.33609736,2646.7,2646.6,3.5]
[1646494318325,0.33609736,2646.7,2646.6,4.5]
[1646494318526,0.33609736,2646.7,2646.6,3.5]
[1646494318726,0.33609736,2646.7,2646.6,4.5]
[1646494319128,0.33609736,2646.7,2646.6,4.955]
[1646494320130,0.33609736,2646.7,2646.6,1.455]
[1646494320326,0.33609736,2646.7,2646.6,0.455]
[1646494320567,0.33609736,2646.7,2646.4,1.1889]
[1646494320768,0.33609736,2646.7,2646.3,1.98332756]
[1646494321269,0.33609736,2646.7,2646.4,3.5]
[1646494321474,0.33609736,2646.7,2646.4,4.44494]
[1646494321673,0.33609736,2646.7,2646.4,5.44494]
[1646494321874,0.00297708,2646.6,2646.4,4.5]
[1646494322074,0.00297708,2646.6,2646.4,1.0]
[1646494322274,0.00297708,2646.6,2646.3,2.91028218]
[1646494322478,0.00297708,2646.6,2646.3,1.98332756]
[1646494322875,0.33609736,2646.7,2646.4,0.94493]
[1646494323075,0.0029771,2646.6,2646.4,0.94493]
[1646494324076,0.33609736,2646.7,2646.4,0.94493]
[1646494324323,0.00297709,2646.6,2646.4,0.94493]
[1646494325122,0.33609736,2646.7,2646.4,0.94493]
[1646494325516,0.00297709,2646.6,2646.4,0.94493]
[1646494326320,0.33609736,2646.7,2646.4,0.94493]
[1646494326819,0.00297709,2646.6,2646.4,0.94493]
[1646494327624,0.33609736,2646.7,2646.4,0.94493]
[1646494327819,0.00297709,2646.6,2646.4,0.94493]
[1646494328872,0.33609736,2646.7,2646.4,0.94493]
[1646494329073,0.00297709,2646.6,2646.4,0.94493]
[1646494330074,0.33609736,2646.7,2646.4,0.94493]
[1646494330279,0.00297709,2646.6,2646.4,0.94493]
[1646494331176,0.33609736,2646.7,2646.4,0.94493]
[1646494331374,0.00297709,2646.6,2646.4,0.94493]
[1646494332418,0.33609736,2646.7,2646.4,3.19105021]
[1646494332619,0.33609736,2646.7,2646.4,3.64605021]
[1646494332823,0.00297709,2646.6,2646.4,4.64605021]
[1646494333022,0.00297709,2646.6,2646.5,0.1889]
[1646494333424,0.00297709,2646.6,2646.5,0.6439]
[1646494333625,0.33609736,2646.7,2646.6,1.88955]
[1646494333826,0.33907443,2646.7,2646.6,1.88955]
[1646494334827,0.33609736,2646.7,2646.5,3.53345]
[1646494335026,0.33609736,2646.7,2646.5,2.34455]
[1646494335226,0.33609736,2646.7,2646.5,3.34455]
[1646494335470,0.33609736,2646.7,2646.5,2.34455]
[1646494336165,0.33907441,2646.7,2646.5,0.455]
[1646494336364,0.28907441,2646.7,2646.5,0.455]
[1646494337167,0.28609736,2646.7,2646.5,0.455]
[1646494337368,0.28907441,2646.7,2646.5,0.455]
[1646494338173,0.28907441,2646.7,2646.2,1.2387]
[1646494338373,0.28609736,2646.7,2646.1,1.1889]
[1646494338573,0.28609736,2646.7,2646.1,0.1889]
[1646494338773,1.19446133,2646.5,2646.1,0.1889]
[1646494339832,0.00202184,2646.4,2646.1,0.1889]
[1646494340834,6.86786386,2647.3,2646.1,0.1889]
[1646494341033,0.00202184,2646.4,2646.1,0.1889]
[1646494342034,1.54954303,2646.7,2646.1,0.1889]
[1646494342234,0.00318784,2646.4,2646.1,0.1889]
[1646494342636,0.00318784,2646.4,2645.9,0.9450296]
[1646494343282,1.54954303,2646.7,2645.9,0.9450296]
[1646494343476,0.00318788,2646.3,2646.2,2.08568934]
[1646494343674,0.00318788,2646.3,2646.2,0.94499]
[1646494344474,1.54954303,2646.7,2646.2,0.94499]
[1646494344674,0.00318784,2646.4,2646.2,0.94499]
[1646494345675,1.54954303,2646.7,2646.2,0.94499]
[1646494345880,0.00318782,2646.4,2646.2,0.94499]
[1646494346075,0.00318782,2646.4,2646.3,1.19307505]
[1646494346921,1.54952588,2646.7,2646.3,1.19307505]
[1646494347125,0.00309216,2646.5,2646.3,1.19307505]
[1646494347722,0.00309216,2646.5,2646.2,0.94499]
[1646494348127,1.54952588,2646.7,2646.0,1.88995]
[1646494348329,0.00309214,2646.5,2646.0,1.88995]
[1646494349330,1.54952588,2646.7,2646.0,1.88995]
[1646494349531,0.0030922,2646.4,2646.0,1.88995]
[1646494350333,1.54952244,2646.7,2646.0,1.88995]
[1646494350767,0.00298303,2646.3,2646.0,1.88995]
[1646494351568,1.54952244,2646.7,2646.0,1.88995]
[1646494351770,0.56591153,2646.8,2646.0,2.81690462]
[1646494351971,0.00298305,2646.3,2646.0,2.81690462]